fUST/lending_fUST_20240416
["ID","MTS","AMOUNT","RATE_DAILY","PERIOD"]
[322693254,1713220238487,-1260.03,0.00030136,2]
[322693255,1713220238496,-500.0,0.00030136,2]
[322693256,1713220238504,-516.15,0.00030136,2]
[322693257,1713220238513,-500.0,0.00030136,2]
[322693258,1713220238522,-500.0,0.00030136,2]
[322693259,1713220238530,-795.41,0.00030136,2]
[322693260,1713220238539,-500.0,0.00030136,2]
[322693261,1713220238547,-5611.41,0.00030136,2]
[322693262,1713220238556,-500.0,0.00030136,2]
[322693263,1713220238565,-604.55685063,0.00030136,2]
[322693264,1713220238574,-714.17,0.00030136,2]
[322693265,1713220238583,-500.0,0.00030136,2]
[322693266,1713220238591,-500.0,0.00030136,2]
[322693267,1713220238600,-932.0,0.00030136,2]
[322693268,1713220238609,-500.0,0.00030136,2]
[322693269,1713220238618,-500.0,0.00030136,2]
[322693270,1713220238627,-500.0,0.00030136,2]
[322693271,1713220238635,-1509.6,0.00030136,2]
[322693272,1713220238645,-500.0,0.00030136,2]
[322693273,1713220238653,-500.0,0.00030136,2]
[322693274,1713220238662,-500.12,0.00030136,2]
[322693275,1713220238671,-500.0,0.00030136,2]
[322693276,1713220238680,-500.0,0.00030136,2]
[322693277,1713220238688,-839.59,0.00030136,2]
[322693278,1713220238698,-3854.49,0.00030136,2]
[322693279,1713220238706,-967.55,0.00030136,2]
[322693280,1713220238715,-500.0,0.00030136,2]
[322693281,1713220238724,-567.72,0.00030136,2]
[322693282,1713220238733,-500.0,0.00030136,2]
[322693283,1713220238741,-500.0,0.00030136,2]
[322693284,1713220238750,-527.12,0.00030136,2]
[322693285,1713220238759,-500.0,0.00030136,2]
[322693286,1713220238769,-500.0,0.00030136,2]
[322693287,1713220238778,-500.0,0.00030136,2]
[322693288,1713220238787,-500.0,0.00030136,2]
[322693289,1713220238796,-500.0,0.00030136,2]
[322693290,1713220238944,-500.0,0.00030136,2]
[322693291,1713220238955,-500.0,0.00030136,2]
[322693292,1713220238964,-527.07,0.00030136,2]
[322693293,1713220238974,-500.0,0.00030136,2]
[322693294,1713220238983,-852.07,0.00030136,2]
[322693295,1713220238992,-809.49,0.00030136,2]
[322693296,1713220239002,-500.0,0.00030136,2]
[322693297,1713220239011,-500.0,0.00030136,2]
[322693298,1713220239020,-500.0,0.00030136,2]
[322693299,1713220239029,-500.0,0.00030136,2]
[322693300,1713220239037,-960.52,0.00030136,2]
[322693301,1713220239046,-500.0,0.00030136,2]
[322693302,1713220239055,-1228.83,0.00030136,2]
[322693303,1713220239065,-500.0,0.00030136,2]
[322693304,1713220239074,-500.0,0.00030136,2]
[322693305,1713220239082,-500.0,0.0003041,7]
[322693306,1713220239090,-500.0,0.0003041,7]
[322693307,1713220239099,-500.0,0.0003041,7]
[322693308,1713220239108,-500.0,0.0003041,7]
[322693309,1713220239117,-500.0,0.0003041,7]
[322693310,1713220239126,-500.0,0.0003041,7]
[322693311,1713220239135,-500.0,0.0003041,7]
[322693312,1713220239144,-560.26024271,0.0003041,7]
[322693313,1713220239153,-500.0,0.0003041,7]
[322693314,1713220239162,-615.76031145,0.0003041,7]
[322693315,1713220239171,-500.0,0.0003041,7]
[322693316,1713220239180,-500.0,0.0003041,7]
[322693317,1713220239189,-510.4,0.0003041,7]
[322693318,1713220239198,-503.59983779,0.0003041,7]
[322693319,1713220239207,-500.0,0.0003041,7]
[322693320,1713220239215,-500.0,0.0003041,7]
[322693321,1713220239226,-757.1,0.0003041,7]
[322693322,1713220239235,-777.0,0.0003041,7]
[322693323,1713220239244,-500.0,0.0003041,7]
[322693324,1713220239253,-500.0,0.0003041,7]
[322693325,1713220239261,-500.0,0.0003041,7]
[322693326,1713220239270,-500.0,0.0003041,7]
[322693327,1713220239279,-500.0,0.0003041,7]
[322693328,1713220239288,-500.0,0.0003041,7]
[322693329,1713220239298,-560.81,0.0003041,7]
[322693330,1713220239308,-188.25522296,0.0003041,7]
[322693332,1713220239318,-500.0,0.0003041,7]
[322693333,1713220239327,-500.0,0.0003041,7]
[322693334,1713220239336,-500.0,0.0003041,7]
[322693335,1713220239346,-500.0,0.0003041,7]
[322693336,1713220239354,-500.0,0.0003041,7]
[322693337,1713220239363,-500.0,0.0003041,7]
[322693338,1713220239372,-500.0,0.0003041,7]
[322693340,1713220239385,-500.0,0.0003041,7]
[322693341,1713220239394,-1260.03,0.0003041,7]
[322693342,1713220239402,-500.0,0.0003041,7]
[322693343,1713220239411,-516.15,0.0003041,7]
[322693344,1713220239420,-500.0,0.0003041,7]
[322693345,1713220239429,-573.41334073,0.0003041,7]
[322693346,1713220239438,-795.41,0.0003041,7]
[322693347,1713220239447,-500.0,0.0003041,7]
[322693348,1713220239456,-5611.41,0.0003041,7]
[322693350,1713220239465,-500.0,0.0003041,7]
[322693352,1713220239475,-714.17,0.0003041,7]
[322693354,1713220239484,-500.0,0.0003041,7]
[322693355,1713220239492,-242.21710893,0.0003041,7]
[322693356,1713220239501,-932.0,0.0003041,7]
[322693357,1713220239510,-500.0,0.0003041,7]
[322693358,1713220239518,-500.0,0.0003041,7]
[322693359,1713220239528,-500.0,0.0003041,7]
[322693360,1713220239537,-1509.6,0.0003041,7]
[322693361,1713220239546,-500.0,0.0003041,7]
[322693362,1713220239554,-500.0,0.0003041,7]
[322693363,1713220239563,-500.12,0.0003041,7]
[322693364,1713220239572,-500.0,0.0003041,7]
[322693365,1713220239581,-500.0,0.0003041,7]
[322693366,1713220239590,-839.59,0.0003041,7]
[322693367,1713220239599,-3854.49,0.0003041,7]
[322693368,1713220239608,-967.55,0.0003041,7]
[322693369,1713220239617,-500.0,0.0003041,7]
[322693370,1713220239626,-567.72,0.0003041,7]
[322693371,1713220239635,-500.0,0.0003041,7]
[322693372,1713220239644,-527.12,0.0003041,7]
[322693373,1713220239653,-500.0,0.0003041,7]
[322693374,1713220239662,-500.0,0.0003041,7]
[322693375,1713220239671,-500.0,0.0003041,7]
[322693376,1713220239679,-500.0,0.0003041,7]
[322693377,1713220239689,-500.0,0.0003041,7]
[322693378,1713220239698,-527.07,0.0003041,7]
[322693379,1713220239706,-852.07,0.0003041,7]
[322693380,1713220239715,-500.0,0.0003041,7]
[322693381,1713220239725,-809.49,0.0003041,7]
[322693382,1713220239734,-500.0,0.0003041,7]
[322693383,1713220239743,-500.0,0.0003041,7]
[322693384,1713220239752,-500.0,0.0003041,7]
[322693385,1713220239761,-500.0,0.0003041,7]
[322693386,1713220239770,-960.52,0.0003041,7]
[322693387,1713220239779,-500.0,0.0003041,7]
[322693388,1713220239788,-1228.83,0.0003041,7]
[322693389,1713220239797,-500.0,0.0003041,7]
[322693390,1713220239806,-500.0,0.0003041,7]
[322693391,1713220239814,-840.79615989,0.00030563,2]
[322693392,1713220239823,-166.666666,0.00030603,2]
[322693393,1713220239832,-500.0,0.00030684,7]
[322693394,1713220239841,-500.0,0.00030684,7]
[322693395,1713220239850,-500.0,0.00030684,7]
[322693396,1713220239859,-500.0,0.00030684,7]
[322693397,1713220239867,-500.0,0.00030684,7]
[322693398,1713220239876,-500.0,0.00030684,7]
[322693399,1713220239885,-500.0,0.00030684,7]
[322693400,1713220239894,-510.4,0.00030684,7]
[322693401,1713220239902,-500.0,0.00030684,7]
[322693402,1713220239911,-500.0,0.00030684,7]
[322693403,1713220239920,-757.1,0.00030684,7]
[322693404,1713220239929,-777.0,0.00030684,7]
[322693405,1713220239938,-500.0,0.00030684,7]
[322693406,1713220239947,-500.0,0.00030684,7]
[322693407,1713220239955,-500.0,0.00030684,7]
[322693408,1713220239965,-500.0,0.00030684,7]
[322693409,1713220239975,-560.81,0.00030684,7]
[322693410,1713220239985,-500.0,0.00030684,7]
[322693411,1713220239993,-500.0,0.00030684,7]
[322693412,1713220240002,-500.0,0.00030684,7]
[322693413,1713220240011,-500.0,0.00030684,7]
[322693414,1713220240020,-500.0,0.00030684,7]
[322693415,1713220240029,-500.0,0.00030684,7]
[322693416,1713220240037,-500.0,0.00030684,7]
[322693417,1713220240046,-1260.03,0.00030684,7]
[322693418,1713220240055,-500.0,0.00030684,7]
[322693419,1713220240064,-516.15,0.00030684,7]
[322693420,1713220240073,-500.0,0.00030684,7]
[322693421,1713220240082,-795.41,0.00030684,7]
[322693422,1713220240091,-500.0,0.00030684,7]
[322693423,1713220240100,-5611.41,0.00030684,7]
[322693424,1713220240108,-500.0,0.00030684,7]
[322693425,1713220240117,-714.17,0.00030684,7]
[322693426,1713220240127,-500.0,0.00030684,7]
[322693427,1713220240136,-932.0,0.00030684,7]
[322693428,1713220240144,-500.0,0.00030684,7]
[322693429,1713220240153,-500.0,0.00030684,7]
[322693430,1713220240162,-500.0,0.00030684,7]
[322693431,1713220240171,-1509.6,0.00030684,7]
[322693432,1713220240180,-500.0,0.00030684,7]
[322693433,1713220240188,-500.0,0.00030684,7]
[322693434,1713220240197,-500.12,0.00030684,7]
[322693435,1713220240206,-441.62875718,0.00030684,7]
[322693436,1713220240215,-436.88042258,0.00030684,7]
[322693437,1713220240225,-839.59,0.00030684,7]
[322693438,1713220240234,-3854.49,0.00030684,7]
[322693439,1713220240243,-967.55,0.00030684,7]
[322693440,1713220240252,-500.0,0.00030684,7]
[322693441,1713220240260,-567.72,0.00030684,7]
[322693442,1713220240269,-500.0,0.00030684,7]
[322693443,1713220240278,-500.0,0.00030684,7]
[322693444,1713220240287,-527.12,0.00030684,7]
[322693445,1713220240296,-500.0,0.00030684,7]
[322693446,1713220240309,-500.0,0.00030684,7]
[322693447,1713220240320,-500.0,0.00030684,7]
[322693448,1713220240332,-500.0,0.00030684,7]
[322693449,1713220240345,-527.07,0.00030684,7]
[322693450,1713220240357,-852.07,0.00030684,7]
[322693451,1713220240370,-500.0,0.00030684,7]
[322693452,1713220240382,-809.49,0.00030684,7]
[322693453,1713220240394,-500.0,0.00030684,7]
[322693454,1713220240404,-500.0,0.00030684,7]
[322693455,1713220240414,-500.0,0.00030684,7]
[322693456,1713220240426,-500.0,0.00030684,7]
[322693457,1713220240439,-960.52,0.00030684,7]
[322693458,1713220240453,-500.0,0.00030684,7]
[322693459,1713220240466,-1228.83,0.00030684,7]
[322693460,1713220240478,-500.0,0.00030684,7]
[322693461,1713220240491,-500.0,0.00030684,7]
[322693462,1713220240503,-863.3898334,0.00030721,2]
[322693463,1713220240514,-500.0,0.00030958,7]
[322693464,1713220240525,-500.0,0.00030958,7]
[322693465,1713220240536,-500.0,0.00030958,7]
[322693466,1713220240548,-500.0,0.00030958,7]
[322693467,1713220240558,-500.0,0.00030958,7]
[322693468,1713220240567,-500.0,0.00030958,7]
[322693469,1713220240577,-500.0,0.00030958,7]
[322693470,1713220240589,-510.4,0.00030958,7]
[322693471,1713220240599,-500.0,0.00030958,7]
[322693472,1713220240609,-500.0,0.00030958,7]
[322693473,1713220240620,-757.1,0.00030958,7]
[322693474,1713220240631,-777.0,0.00030958,7]
[322693475,1713220240641,-252.22476927,0.00030958,7]
[322693476,1713220240651,-500.0,0.00030958,7]
[322693477,1713220240662,-500.0,0.00030958,7]
[322693478,1713220240673,-500.0,0.00030958,7]
[322693479,1713220240684,-560.81,0.00030958,7]
[322693480,1713220240695,-500.0,0.00030958,7]
[322693481,1713220240704,-500.0,0.00030958,7]
[322693482,1713220240714,-500.0,0.00030958,7]
[322693483,1713220240723,-500.0,0.00030958,7]
[322693484,1713220240734,-500.0,0.00030958,7]
[322693485,1713220240746,-500.0,0.00030958,7]
[322693486,1713220240757,-500.0,0.00030958,7]
[322693487,1713220240767,-1260.03,0.00030958,7]
[322693488,1713220240778,-500.0,0.00030958,7]
[322693489,1713220240789,-516.15,0.00030958,7]
[322693490,1713220240799,-500.0,0.00030958,7]
[322693491,1713220240809,-795.41,0.00030958,7]
[322693492,1713220240821,-500.0,0.00030958,7]
[322693493,1713220240831,-5611.41,0.00030958,7]
[322693494,1713220240842,-500.0,0.00030958,7]
[322693495,1713220240853,-714.17,0.00030958,7]
[322693496,1713220240864,-500.0,0.00030958,7]
[322693497,1713220240875,-932.0,0.00030958,7]
[322693498,1713220240886,-500.0,0.00030958,7]
[322693499,1713220240897,-500.0,0.00030958,7]
[322693500,1713220240908,-500.0,0.00030958,7]
[322693501,1713220240920,-1509.6,0.00030958,7]
[322693502,1713220240932,-500.0,0.00030958,7]
[322693503,1713220240946,-500.0,0.00030958,7]
[322693504,1713220240959,-500.12,0.00030958,7]
[322693505,1713220240972,-839.59,0.00030958,7]
[322693506,1713220240984,-3854.49,0.00030958,7]
[322693507,1713220240996,-967.55,0.00030958,7]
[322693508,1713220241006,-500.0,0.00030958,7]
[322693509,1713220241015,-567.72,0.00030958,7]
[322693510,1713220241025,-500.0,0.00030958,7]
[322693511,1713220241035,-500.0,0.00030958,7]
[322693512,1713220241046,-527.12,0.00030958,7]
[322693513,1713220241057,-500.0,0.00030958,7]
[322693514,1713220241068,-500.0,0.00030958,7]
[322693515,1713220241080,-500.0,0.00030958,7]
[322693516,1713220241090,-500.0,0.00030958,7]
[322693517,1713220241101,-527.07,0.00030958,7]
[322693518,1713220241112,-500.0,0.00030958,7]
[322693519,1713220241124,-852.07,0.00030958,7]
[322693520,1713220241134,-809.49,0.00030958,7]
[322693521,1713220241145,-500.0,0.00030958,7]
[322693522,1713220241155,-500.0,0.00030958,7]
[322693523,1713220241165,-500.0,0.00030958,7]
[322693524,1713220241175,-500.0,0.00030958,7]
[322693525,1713220241186,-960.52,0.00030958,7]
[322693526,1713220241196,-500.0,0.00030958,7]
[322693527,1713220241206,-1228.83,0.00030958,7]
[322693528,1713220241217,-500.0,0.00030958,7]
[322693529,1713220241228,-500.0,0.00030958,7]
[322693530,1713220241238,-10625.72892433,0.00031,5]
[322693531,1713220241249,-660.12412155,0.00031075,5]
[322693532,1713220241260,-446.53897532,0.00031231,2]
[322693533,1713220241270,-500.0,0.00031232,7]
[322693534,1713220241281,-180.12418975,0.00031232,7]
[322693535,1713220241291,-500.0,0.00031232,7]
[322693536,1713220241305,-500.0,0.00031232,7]
[322693537,1713220241315,-500.0,0.00031232,7]
[322693538,1713220241325,-500.0,0.00031232,7]
[322693539,1713220241336,-500.0,0.00031232,7]
[322693540,1713220241348,-510.4,0.00031232,7]
[322693541,1713220241358,-500.0,0.00031232,7]
[322693542,1713220241369,-500.0,0.00031232,7]
[322693543,1713220241379,-757.1,0.00031232,7]
[322693544,1713220241391,-777.0,0.00031232,7]
[322693545,1713220241402,-500.0,0.00031232,7]
[322693546,1713220241413,-626.86979743,0.00031232,7]
[322693547,1713220241422,-500.0,0.00031232,7]
[322693548,1713220241433,-560.81,0.00031232,7]
[322693549,1713220241444,-500.0,0.00031232,7]
[322693550,1713220241454,-500.0,0.00031232,7]
[322693551,1713220241464,-500.0,0.00031232,7]
[322693552,1713220241475,-500.0,0.00031232,7]
[322693553,1713220241485,-500.0,0.00031232,7]
[322693554,1713220241495,-500.0,0.00031232,7]
[322693555,1713220241508,-500.0,0.00031232,7]
[322693556,1713220241518,-1260.03,0.00031232,7]
[322693557,1713220241528,-500.0,0.00031232,7]
[322693558,1713220241540,-516.15,0.00031232,7]
[322693559,1713220241551,-500.0,0.00031232,7]
[322693560,1713220241561,-795.41,0.00031232,7]
[322693561,1713220241572,-500.0,0.00031232,7]
[322693562,1713220241582,-5611.41,0.00031232,7]
[322693563,1713220241592,-500.0,0.00031232,7]
[322693564,1713220241603,-714.17,0.00031232,7]
[322693565,1713220241613,-500.0,0.00031232,7]
[322693566,1713220241623,-932.0,0.00031232,7]
[322693567,1713220241633,-500.0,0.00031232,7]
[322693568,1713220241644,-500.0,0.00031232,7]
[322693569,1713220241654,-500.0,0.00031232,7]
[322693570,1713220241665,-1509.6,0.00031232,7]
[322693571,1713220241676,-500.0,0.00031232,7]
[322693572,1713220241687,-500.0,0.00031232,7]
[322693573,1713220241698,-500.12,0.00031232,7]
[322693574,1713220241708,-839.59,0.00031232,7]
[322693575,1713220241719,-3854.49,0.00031232,7]
[322693576,1713220241732,-967.55,0.00031232,7]
[322693577,1713220241743,-567.72,0.00031232,7]
[322693578,1713220241754,-500.0,0.00031232,7]
[322693579,1713220241765,-500.0,0.00031232,7]
[322693580,1713220241775,-527.12,0.00031232,7]
[322693581,1713220241786,-500.0,0.00031232,7]
[322693582,1713220241797,-500.0,0.00031232,7]
[322693583,1713220241807,-500.0,0.00031232,7]
[322693584,1713220241817,-500.0,0.00031232,7]
[322693585,1713220241827,-527.07,0.00031232,7]
[322693586,1713220241837,-500.0,0.00031232,7]
[322693588,1713220241848,-852.07,0.00031232,7]
[322693590,1713220241858,-809.49,0.00031232,7]
[322693592,1713220241868,-500.0,0.00031232,7]
[322693594,1713220241878,-500.0,0.00031232,7]
[322693595,1713220241888,-500.0,0.00031232,7]
[322693596,1713220241898,-500.0,0.00031232,7]
[322693597,1713220241908,-960.52,0.00031232,7]
[322693598,1713220241918,-500.0,0.00031232,7]
[322693599,1713220241928,-1228.83,0.00031232,7]
[322693616,1713220242092,-500.0,0.00031232,7]
[322693619,1713220242103,-150.0,0.0003124,2]
[322693621,1713220242112,-587.0,0.00031266,2]
[322693623,1713220242121,-863.3898334,0.00031406,2]
[322693625,1713220242131,-161.77699218,0.00031504,4]
[322693626,1713220242140,-880.8735514,0.00031505,4]
[322693629,1713220242151,-158.76974363,0.00031505,4]
[322693631,1713220242160,-500.0,0.00031506,7]
[322693633,1713220242169,-416.73883503,0.00031506,7]
[322693635,1713220242178,-500.0,0.00031506,7]
[322693637,1713220242188,-500.0,0.00031506,7]
[322693639,1713220242197,-500.0,0.00031506,7]
[322693641,1713220242207,-500.0,0.00031506,7]
[322693642,1713220242217,-510.4,0.00031506,7]
[322693645,1713220242229,-500.0,0.00031506,7]
[322693647,1713220242239,-500.0,0.00031506,7]
[322693649,1713220242249,-757.1,0.00031506,7]
[322693651,1713220242258,-777.0,0.00031506,7]
[322693653,1713220242268,-500.0,0.00031506,7]
[322693655,1713220242277,-500.0,0.00031506,7]
[322693657,1713220242286,-560.81,0.00031506,7]
[322693658,1713220242296,-500.0,0.00031506,7]
[322693660,1713220242306,-500.0,0.00031506,7]
[322693663,1713220242318,-500.0,0.00031506,7]
[322693664,1713220242327,-500.0,0.00031506,7]
[322693667,1713220242336,-500.0,0.00031506,7]
[322693668,1713220242346,-500.0,0.00031506,7]
[322693671,1713220242356,-500.0,0.00031506,7]
[322693673,1713220242365,-1260.03,0.00031506,7]
[322693675,1713220242374,-500.0,0.00031506,7]
[322693677,1713220242383,-516.15,0.00031506,7]
[322693679,1713220242393,-500.0,0.00031506,7]
[322693681,1713220242403,-795.41,0.00031506,7]
[322693683,1713220242413,-500.0,0.00031506,7]
[322693685,1713220242422,-5611.41,0.00031506,7]
[322693688,1713220242431,-500.0,0.00031506,7]
[322693690,1713220242441,-714.17,0.00031506,7]
[322693691,1713220242450,-500.0,0.00031506,7]
[322693694,1713220242459,-932.0,0.00031506,7]
[322693696,1713220242468,-500.0,0.00031506,7]
[322693697,1713220242479,-500.0,0.00031506,7]
[322693698,1713220242488,-500.0,0.00031506,7]
[322693699,1713220242497,-1509.6,0.00031506,7]
[322693700,1713220242507,-500.0,0.00031506,7]
[322693702,1713220242518,-500.0,0.00031506,7]
[322693704,1713220242527,-500.12,0.00031506,7]
[322693706,1713220242537,-839.59,0.00031506,7]
[322693708,1713220242545,-3854.49,0.00031506,7]
[322693710,1713220242555,-967.55,0.00031506,7]
[322693712,1713220242564,-567.72,0.00031506,7]
[322693713,1713220242573,-500.0,0.00031506,7]
[322693714,1713220242583,-500.0,0.00031506,7]
[322693715,1713220242593,-527.12,0.00031506,7]
[322693716,1713220242602,-500.0,0.00031506,7]
[322693717,1713220242612,-500.0,0.00031506,7]
[322693718,1713220242621,-500.0,0.00031506,7]
[322693719,1713220242631,-151.62095975,0.00031506,7]
[322693720,1713220242641,-527.07,0.00031506,7]
[322693721,1713220242650,-500.0,0.00031506,7]
[322693722,1713220242660,-852.07,0.00031506,7]
[322693723,1713220242670,-809.49,0.00031506,7]
[322693724,1713220242679,-500.0,0.00031506,7]
[322693725,1713220242689,-500.0,0.00031506,7]
[322693726,1713220242699,-500.0,0.00031506,7]
[322693727,1713220242709,-500.0,0.00031506,7]
[322693728,1713220242719,-960.52,0.00031506,7]
[322693729,1713220242730,-500.0,0.00031506,7]
[322693730,1713220242739,-1228.83,0.00031506,7]
[322693731,1713220242749,-500.0,0.00031506,7]
[322693732,1713220242759,-9008.08079853,0.00031779,4]
[322693733,1713220242769,-230.84918498,0.0003178,7]
[322693738,1713220243097,-156.98200501,0.00025081,2]
[322693739,1713220243106,-269.15081502,0.0003178,7]
[322693741,1713220243115,-500.0,0.0003178,7]
[322693743,1713220243125,-500.0,0.0003178,7]
[322693744,1713220243135,-500.0,0.0003178,7]
[322693745,1713220243144,-213.07285142,0.0003178,7]
[322693780,1713221245100,-783.63141595,0.0002499,2]
[322693781,1713221245120,-237.82003824,0.0002499,2]
[322693782,1713221245142,-154.87609912,0.0002499,2]
[322693783,1713221245161,-953.73793423,0.00024991,2]
[322693784,1713221245322,-154.87609912,0.00024991,2]
[322693785,1713221245343,-1000.0,0.00024991,2]
[322693786,1713221245362,-216.09314923,0.00024991,2]
[322693787,1713221245382,-158.76974363,0.00024991,2]
[322693788,1713221245401,-154.87609912,0.00024992,2]
[322693789,1713221245421,-2583.74745148,0.00024992,2]
[322693790,1713221245440,-497.61736297,0.00024995,2]
[322693791,1713221245459,-156.98200501,0.00025,2]
[322693792,1713221245479,-166.780428,0.00027281,2]
[322693793,1713221245499,-577.60860636,0.00027338,3]
[322693794,1713221245519,-160.057611,0.00027397,2]
[322693795,1713221245539,-167.887009,0.00027397,2]
[322693796,1713221245558,-1378.88199522,0.000274,2]
[322693797,1713221245578,-155.41939666,0.00027436,2]
[322693798,1713221245598,-356.55926804,0.00027437,2]
[322693799,1713221245619,-343.2120287,0.00027438,2]
[322693856,1713221438071,-237.82003824,0.00024791,2]
[322693858,1713221438081,-151.61079537,0.00024792,2]
[322693860,1713221438091,-1574.32701702,0.0002489,2]
[322693862,1713221438100,-8000.0,0.00024891,2]
[322693864,1713221438110,-300.0,0.00024892,2]
[322693866,1713221438119,-300.0,0.00024892,2]
[322693868,1713221438129,-785.18771344,0.00024893,2]
[322693870,1713221438138,-156.98200501,0.00025,2]
[322693872,1713221438147,-526.30200103,0.000253,2]
[322693874,1713221438158,-420.0,0.00026969,2]
[322693876,1713221438167,-420.0,0.00027381,2]
[322693879,1713221438177,-1000.0,0.00027397,2]
[322693880,1713221438186,-166.666666,0.00027397,2]
[322693882,1713221438195,-59063.66666477,0.00027409,2]
[322693884,1713221438204,-769.05677609,0.0002741,2]
[322693886,1713221438214,-173.40745982,0.00027436,2]
[322693888,1713221438223,-301.97885008,0.00027436,2]
[322693890,1713221438232,-216.09314923,0.00027436,2]
[322693892,1713221438241,-240.07595404,0.00027436,2]
[322693894,1713221438251,-8504.32940891,0.00027436,2]
[322693896,1713221438260,-270.33713602,0.00027436,2]
[322693898,1713221438269,-155.10286771,0.00027436,2]
[322693901,1713221438280,-160.7812492,0.00027436,2]
[322693903,1713221438289,-159.74857371,0.00027436,2]
[322693905,1713221438298,-155.65073674,0.00027436,2]
[322693907,1713221438307,-154.92253973,0.00027436,2]
[322693909,1713221438316,-163.07692582,0.00027436,2]
[322693911,1713221438325,-177.44474695,0.00027436,4]
[322693913,1713221438334,-171.82632206,0.00027436,2]
[322693914,1713221438343,-157.02197256,0.00027436,2]
[322693916,1713221438353,-300.53023385,0.00027436,2]
[322693919,1713221438363,-254.93253828,0.00027436,2]
[322693921,1713221438372,-230.76684824,0.00027436,2]
[322693923,1713221438381,-193.27870216,0.00027437,2]
[322693925,1713221438390,-160.49598166,0.00027437,2]
[322693927,1713221438399,-1000.0,0.00027437,2]
[322693929,1713221438409,-194.82359251,0.00027437,2]
[322693931,1713221438421,-181.41719228,0.00027437,3]
[322693933,1713221438430,-294.14905566,0.00027437,2]
[322693935,1713221438439,-256.6214319,0.00027437,2]
[322693937,1713221438448,-162.27641307,0.00027437,2]
[322693938,1713221438458,-209.241626,0.00027437,2]
[322693941,1713221438467,-2061.41051823,0.00027437,2]
[322693942,1713221438476,-172.0280772,0.00027437,2]
[322693944,1713221438485,-155.361949,0.00027437,2]
[322693946,1713221438495,-155.1005172,0.00027437,2]
[322693948,1713221438504,-193.82100983,0.00027437,2]
[322693950,1713221438513,-170.85768574,0.00027437,2]
[322693952,1713221438522,-159.17335494,0.00027438,2]
[322693954,1713221438532,-755.09359961,0.00027438,2]
[322693956,1713221438540,-9145.7680547,0.00027439,120]
[322693958,1713221438550,-352.56635692,0.00027476,2]
[322693960,1713221438559,-360.9872227,0.00027476,2]
[322693962,1713221438568,-155.26211876,0.00027476,2]
[322693964,1713221438577,-193.09743629,0.00027476,2]
[322693966,1713221438586,-1550.1583986,0.00027476,2]
[322693968,1713221438595,-155.95381061,0.00027476,2]
[322693970,1713221438604,-274.35206179,0.00027476,2]
[322693972,1713221438614,-2674.64824014,0.00027476,2]
[322693974,1713221438623,-1138.5449956,0.00027476,2]
[322693976,1713221438632,-325.62785758,0.00027476,2]
[322693978,1713221438641,-10874.53509252,0.00027476,2]
[322693980,1713221438650,-24900.0,0.00027478,2]
[322693982,1713221438659,-800.48349952,0.000275,17]
[322693984,1713221438671,-166.666666,0.00028038,2]
[322693986,1713221438680,-195.294974,0.00028336,2]